[Event "44th Chess Olympiad Open 2022"]
[Site "Chennai"]
[Date "2022.07.30"]
[Round "2.25"]
[White "Mastrovasilis, Athanasios"]
[Black "Makolli, Perparim"]
[Result "1-0"]
[WhiteElo "2527"]
[BlackElo "2247"]
[Annotator "TA"]
[PlyCount "95"]
[EventDate "2022.??.??"]
[TimeControl "60"]

{[%evp 17,95,38,40,43,44,41,51,30,26,38,95,87,104,84,81,86,88,85,77,83,84,99,
85,79,90,66,81,42,114,114,102,71,76,72,70,53,86,90,115,104,145,143,190,147,120,
93,87,94,93,76,121,52,72,58,77,29,99,37,55,45,53,59,60,49,65,83,68,86,128,127,
170,170,173,147,210,226,313,308,535,397]} 1. d4 {[%emt 0:00:03]} d5 {[%emt 0:
00:00]} 2. c4 {[%emt 0:00:19]} dxc4 {[%emt 0:02:24]} 3. e4 {[%emt 0:00:34]
[%cal Ye2e4,Ye4e5]} Nf6 {[%emt 0:04:55]} 4. e5 {[%emt 0:00:42]} Nd5 {[%emt 0:
01:06]} 5. Bxc4 {[%emt 0:00:21]} Nb6 {[%emt 0:04:06]} 6. Bd3 {[%emt 0:00:00]}
Nc6 {[%emt 0:03:31]} 7. Ne2 {[%emt 0:05:14]} Bg4 {[%emt 0:02:35]} 8. f3 {
[%emt 0:00:43]} Be6 {[%emt 0:01:23]} 9. Nbc3 {[%emt 0:02:51][%cal Yb1c3,Yc3e4,
Ye4c5]} Qd7 {[%emt 0:04:55] 9...Bc4 is vanishing.} (9... Nxd4 $2 10. Nxd4 Qd7
11. Nxe6 Qxe6 12. Qe2 $18) 10. Ne4 {[%emt 0:09:31] D20: Queen's Gambit
Accepted: 3 e3 and 3 e4.} Bd5 {[%emt 0:02:28]} (10... Nxd4 $2 11. Nxd4 c6 12.
Be3 $18) 11. Nc5 {[%emt 0:21:41]} Qc8 {[%emt 0:00:19]} 12. a3 {[%emt 0:00:00]
White is slightly better.} e6 {[%emt 0:05:55][%cal Yc6d4]} 13. Qc2 {[%emt 0:01:
31]} Nd7 {[%emt 0:08:28]} (13... Qd8 $14) 14. Ne4 $16 {[%emt 0:00:00]} a5 {
[%emt 0:02:42]} 15. N4c3 {[%emt 0:02:52] [#]} Nb6 $146 {[%emt 0:02:03]} ({
Predecessor:} 15... Ne7 16. Nf4 Nb6 17. Nfxd5 Nexd5 18. f4 g6 19. O-O Qd7 20.
Kh1 h5 21. Bd2 Be7 {0-1 (85) Kantor,G (2530)-Borhy,M (2358) Balatonlelle 2020})
16. Nxd5 {[%emt 0:05:51]} Nxd5 {[%emt 0:00:31]} 17. Bb5 {[%emt 0:00:16]} Qd7 {
[%emt 0:02:31]} 18. Bd2 {[%emt 0:00:16]} Be7 {[%emt 0:02:14]} 19. Rc1 {[%emt 0:
00:18]} O-O {[%emt 0:01:26]} 20. O-O {[%emt 0:01:20]} Rfb8 {[%emt 0:00:00]} 21.
Qe4 {[%emt 0:06:19]} Bf8 {[%emt 0:00:00]} 22. Bg5 $40 {[%emt 0:04:43] White
mounts an attack.} Qc8 {[%emt 0:03:59]} (22... Be7 $14 23. Bd2 f5) 23. h4 {
[%emt 0:03:46]} Be7 {[%emt 0:04:03]} 24. Bd3 {[%emt 0:02:49]} g6 {[%emt 0:01:
04]} 25. Bd2 {[%emt 0:00:53]} Qd7 {[%emt 0:02:49]} 26. Bb5 {[%emt 0:00:00]} Bf8
{[%emt 0:02:39]} 27. Rfd1 {[%emt 0:01:07]} Qd8 {[%emt 0:04:29]} 28. h5 {
[%emt 0:01:08]} Nce7 {[%emt 0:02:24]} 29. hxg6 {[%emt 0:01:35] 0x0.
0019eb866906dp-1022s more active pieces.} fxg6 {[%emt 0:01:02]} (29... Nxg6 $16
{keeps fighting.} 30. g3 c6) 30. Bg5 {[%emt 0:00:52]} c6 {[%emt 0:00:21]} 31.
Bc4 {[%emt 0:01:07]} Qd7 {[%emt 0:00:48]} 32. Ba2 {[%emt 0:03:15]} Bg7 {
[%emt 0:01:39]} 33. Qg4 {[%emt 0:01:04]} Nf5 {[%emt 0:01:20] [#]} 34. Nc3 {
[%emt 0:00:26]} ({Better is} 34. Qh3 $1 $16) 34... Re8 {[%emt 0:01:20]} 35. Kf2
{[%emt 0:01:27] Against Nfe3} Qf7 {[%emt 0:02:50]} 36. Ne4 {[%emt 0:01:48]} (
36. Qe4 $16) 36... Rf8 {[%emt 0:00:28]} (36... h6 $11) 37. Bxd5 {[%emt 0:01:36]
} ({White should play} 37. Qh3 $16) 37... cxd5 {[%emt 0:01:34]} 38. Nf6+ {
[%emt 0:00:50]} Bxf6 {[%emt 0:00:21]} 39. Bxf6 {[%emt 0:00:23]} Rfc8 {[%emt 0:
00:00]} 40. Qf4 {[%emt 0:00:37]} Ng7 {[%emt 0:03:25]} 41. g4 {[%emt 0:32:33]}
Ne8 {[%emt 0:32:30]} 42. Kg3 {[%emt 0:00:00]} Qd7 {[%emt 0:00:00]} 43. Bg5 {
[%emt 0:00:00]} Qf7 {[%emt 0:00:00] [#]} 44. Qd2 $1 {[%emt 0:00:00]} b6 {
[%emt 0:00:00]} 45. Bh6 {[%emt 0:00:00]} Ng7 {[%emt 0:00:00]} (45... Qd7 $16
46. Rh1 (46. Qf4 Qe7 $16) 46... Rc4) 46. Rc3 $18 {[%emt 0:00:00]} Qd7 {[%emt 0:
00:00]} 47. Rdc1 {[%emt 0:00:00] Strongly threatening Rxc8+.} Ne8 $2 {[%emt 0:
00:00]} (47... Rxc3 48. Qxc3 (48. Rxc3 Ne8 $18) 48... Ra7) 48. Qf4 {[%emt 0:00:
00] Weighted Error Value: White=0.10 (very precise) /Black=0.27 (precise)} 1-0

[Event "44th Chess Olympiad Open 2022"]
[Site "Chennai"]
[Date "2022.07.30"]
[Round "2.25"]
[White "Saraci, Korab"]
[Black "Theodorou, Nikolas"]
[Result "0-1"]
[WhiteElo "2287"]
[BlackElo "2575"]
[Annotator "ChessBase"]
[PlyCount "76"]
[EventDate "2022.??.??"]
[TimeControl "60"]

1. e4 {[%emt 0:00:04]} c5 {[%emt 0:00:10]} 2. c3 {[%emt 0:00:05]} e5 {[%emt 0:
00:00]} 3. Nf3 {[%emt 0:02:34]} Nc6 {[%emt 0:00:00]} 4. Be2 {[%emt 0:05:00]}
Nf6 {[%emt 0:02:19]} 5. d3 {[%emt 0:01:55]} d5 {[%emt 0:00:53]} 6. Qc2 {
[%emt 0:03:21]} Be7 {[%emt 0:02:56]} 7. O-O {[%emt 0:04:53]} O-O {[%emt 0:00:
00]} 8. Re1 {[%emt 0:05:10]} d4 {[%emt 0:07:18]} 9. Nbd2 {[%emt 0:03:29]} Be6 {
[%emt 0:02:42]} 10. Nf1 {[%emt 0:07:13]} Nd7 {[%emt 0:11:15]} 11. Ng3 {[%emt 0:
00:00]} g6 {[%emt 0:05:09]} 12. Qd2 {[%emt 0:02:17]} f6 {[%emt 0:07:22]} 13. h4
{[%emt 0:10:08]} Rf7 {[%emt 0:00:15]} 14. h5 {[%emt 0:10:39]} Nf8 {[%emt 0:00:
00]} 15. Nh2 {[%emt 0:06:22]} Qd7 {[%emt 0:04:22]} 16. c4 {[%emt 0:04:06]} f5 {
[%emt 0:11:51]} 17. exf5 {[%emt 0:06:47]} gxf5 {[%emt 0:00:13]} 18. Bf3 {
[%emt 0:00:17]} Bf6 {[%emt 0:04:46]} 19. Qe2 {[%emt 0:00:21]} Kh8 {[%emt 0:00:
00]} 20. h6 {[%emt 0:02:58]} Ng6 {[%emt 0:04:28]} 21. Nh5 {[%emt 0:00:36]} Rg8
{[%emt 0:00:09]} 22. Nxf6 {[%emt 0:00:37]} Rxf6 {[%emt 0:00:03]} 23. Bg5 {
[%emt 0:00:16]} Rf7 {[%emt 0:01:46]} 24. Bh5 {[%emt 0:01:02]} e4 {[%emt 0:00:
00]} 25. b3 {[%emt 0:03:56]} Nge5 {[%emt 0:02:35]} 26. dxe4 {[%emt 0:01:35]}
Rxg5 {[%emt 0:06:45]} 27. Bxf7 {[%emt 0:01:58]} Nxf7 {[%emt 0:01:58]} 28. exf5
{[%emt 0:03:09]} Bxf5 {[%emt 0:00:11]} 29. Nf3 {[%emt 0:01:25]} Rg8 {[%emt 0:
00:00]} 30. Nh4 {[%emt 0:00:23]} Bg4 {[%emt 0:02:11]} 31. Qd2 {[%emt 0:01:46]}
Qd8 {[%emt 0:03:54]} 32. Qf4 {[%emt 0:01:16]} Qxh4 {[%emt 0:00:38]} 33. Qxf7 {
[%emt 0:00:09]} Bh5 {[%emt 0:01:51]} 34. Qxb7 {[%emt 0:02:09]} Qf6 {[%emt 0:00:
00]} 35. Qc7 {[%emt 0:01:31]} Bf3 {[%emt 0:01:02]} 36. Qh2 {[%emt 0:01:36]}
Bxg2 {[%emt 0:00:21]} 37. f4 {[%emt 0:00:08]} d3 {[%emt 0:01:05]} 38. Kf2 {
[%emt 0:00:50]} Qb2+ {[%emt 0:00:18]} 0-1

[Event "44th Chess Olympiad Open 2022"]
[Site "Chennai"]
[Date "2022.07.30"]
[Round "2.25"]
[White "Asllani, Muhamet"]
[Black "Ioannidis, Evgenios"]
[Result "0-1"]
[WhiteElo "2235"]
[BlackElo "2459"]
[Annotator "TA"]
[PlyCount "78"]
[EventDate "2022.??.??"]
[TimeControl "60"]

{[%evp 14,78,-17,-9,-6,-24,-14,-30,-26,-24,-14,-15,-15,-40,-21,-25,-18,-42,-38,
-41,-45,-58,-37,-42,-52,-88,-78,-75,-86,-99,-96,-130,-131,-137,-142,-138,-128,
-162,-159,-189,-187,-181,-178,-187,-158,-195,-192,-179,-185,-196,-171,-204,
-206,-211,-191,-216,-224,-192,-138,-148,-139,-384,-391,-388,-252,-458,-441]} 1.
e4 {[%emt 0:00:09]} e5 {[%emt 0:00:27]} 2. Nf3 {[%emt 0:00:13]} Nc6 {[%emt 0:
00:00]} 3. d4 {[%emt 0:00:23]} exd4 {[%emt 0:00:35]} 4. Bc4 {[%emt 0:00:39]}
Nf6 {[%emt 0:02:33]} 5. O-O {[%emt 0:00:33]} Nxe4 {[%emt 0:00:32]} 6. Re1 {
[%emt 0:00:40]} d5 {[%emt 0:00:06]} 7. Bxd5 {[%emt 0:00:12]} Qxd5 {[%emt 0:00:
00]} 8. Nc3 $1 {[%emt 0:00:07] [#] Deflection} Qd7 {[%emt 0:00:35] C56: Two
Knights: 4 d4 exd4 5 0-0 Nxe4.} 9. Rxe4+ {[%emt 0:01:15]} (9. Nxe4 Be7) 9...
Be7 {[%emt 0:00:23]} 10. Nxd4 {[%emt 0:00:44]} f5 $1 {[%emt 0:00:54] Black has
an edge.} 11. Rf4 {[%emt 0:01:28]} ({Much worse is} 11. Qh5+ g6 12. Nxc6 bxc6
13. Rxe7+ Qxe7 $17) 11... O-O {[%emt 0:02:57]} 12. Nxc6 {[%emt 0:00:00]} Qxc6 {
[%emt 0:00:48]} 13. Qd5+ {[%emt 0:10:31] [#]} Qe6 $146 {[%emt 0:00:00]} ({
Predecessor:} 13... Qxd5 14. Nxd5 Bd6 15. Rd4 Be5 16. Rd1 f4 17. f3 Bd6 18. Bd2
Bf5 19. Bb4 c5 {0-1 (78) Espinosa Veloz,E (2485)-Salinas Herrera,P (2514)
Chess.com INT 2021}) 14. Rf3 {[%emt 0:10:24]} c6 {[%emt 0:12:47]} 15. Qxe6+ {
[%emt 0:05:45]} Bxe6 {[%emt 0:00:13]} 16. Bf4 {[%emt 0:00:52]} Kf7 {[%emt 0:00:
46]} 17. Be5 {[%emt 0:02:12]} Rad8 {[%emt 0:03:38]} 18. Re1 {[%emt 0:01:22]
[%cal Ye5g7]} g6 {[%emt 0:11:38]} 19. Rd3 {[%emt 0:20:54] Against Rd2} Rxd3 {
[%emt 0:05:03]} 20. cxd3 {[%emt 0:01:53]} Rd8 {[%emt 0:00:00]} 21. Rd1 {
[%emt 0:04:13]} b5 {[%emt 0:01:30][%cal Yb7b5,Yb5b4]} 22. b3 {[%emt 0:01:56] 
[#]} a5 $1 {[%emt 0:00:59][%cal Ya7a5,Ya5a4]} 23. Ne2 {[%emt 0:04:46] [#]} a4
$1 {[%emt 0:13:14]} 24. Nd4 {[%emt 0:07:54]} Bd5 {[%emt 0:09:25]} 25. Rc1 {
[%emt 0:00:25]} axb3 {[%emt 0:00:52]} 26. axb3 {[%emt 0:00:10]} b4 {[%emt 0:00:
45] Strongly threatening ...c5.} 27. Rb1 {[%emt 0:07:31]} c5 {[%emt 0:06:14]}
28. Ne2 {[%emt 0:01:27]} Bc6 {[%emt 0:00:00] A strong pair of Bishops.} 29. Rd1
{[%emt 0:01:24]} Bb5 {[%emt 0:01:58]} 30. Nc1 {[%emt 0:00:14]} c4 {[%emt 0:03:
46]} 31. bxc4 {[%emt 0:00:46]} Bxc4 {[%emt 0:00:07] Pin} 32. Kf1 {[%emt 0:01:
47] [#]} b3 $1 {[%emt 0:02:15][%cal Ye7a3]} 33. Bb2 {[%emt 0:02:23] [#]} Bb4 $1
{[%emt 0:08:47]} 34. f3 {[%emt 0:04:09] [#]} (34. Kg1 Bb5) 34... g5 $1 {
[%emt 0:00:56]} 35. Kf2 {[%emt 0:00:14]} Bd5 {[%emt 0:00:45]} ({Black should
play} 35... f4 $19 36. g3 Bb5) 36. Ne2 $17 {[%emt 0:00:08]} Ra8 {[%emt 0:00:43]
} 37. Nc3 $2 {[%emt 0:00:00]} (37. Rb1 $17 {might work better.}) 37... Bxc3 $19
{[%emt 0:01:20]} 38. Bxc3 {[%emt 0:00:09]} Ra2+ {[%emt 0:00:03]} 39. Bd2 $2 {
[%emt 0:00:44]} (39. Ke3 {was the only defense.}) 39... Rc2 {[%emt 0:00:22]
Weighted Error Value: White=0.24 (precise) /Black=0.08 (flawless)} 0-1

[Event "44th Chess Olympiad Open 2022"]
[Site "Chennai"]
[Date "2022.07.30"]
[Round "2.26"]
[White "Moroni, Luca Jr"]
[Black "Palomo, Franklin Annervys"]
[Result "1-0"]
[WhiteElo "2584"]
[BlackElo "2324"]
[Annotator "ChessBase"]
[PlyCount "81"]
[EventDate "2022.??.??"]
[TimeControl "60"]

1. d4 {[%emt 0:00:03]} Nf6 {[%emt 0:00:14]} 2. c4 {[%emt 0:00:06]} g6 {[%emt 0:
00:00]} 3. Nc3 {[%emt 0:00:06]} Bg7 {[%emt 0:00:21]} 4. e4 {[%emt 0:00:07]} d6
{[%emt 0:00:16]} 5. Bd3 {[%emt 0:00:05]} e5 {[%emt 0:01:41]} 6. d5 {[%emt 0:00:
00]} a5 {[%emt 0:01:27]} 7. Nge2 {[%emt 0:00:08]} Na6 {[%emt 0:01:13]} 8. O-O {
[%emt 0:00:16]} O-O {[%emt 0:00:14]} 9. f3 {[%emt 0:00:13]} Nc5 {[%emt 0:03:44]
} 10. Bc2 {[%emt 0:00:07]} Nfd7 {[%emt 0:04:16]} 11. Be3 {[%emt 0:02:08]} f5 {
[%emt 0:05:40]} 12. exf5 {[%emt 0:00:09]} gxf5 {[%emt 0:00:06]} 13. f4 {
[%emt 0:00:03]} e4 {[%emt 0:04:06]} 14. Nd4 {[%emt 0:00:17]} Nf6 {[%emt 0:00:
00]} 15. h3 {[%emt 0:05:09]} Bd7 {[%emt 0:00:42]} 16. a3 {[%emt 0:05:32]} a4 {
[%emt 0:07:15]} 17. Rb1 {[%emt 0:06:35]} Rf7 {[%emt 0:05:19]} 18. Ndb5 {
[%emt 0:05:03]} b6 {[%emt 0:06:45]} 19. Rf2 {[%emt 0:08:56]} Re7 {[%emt 0:00:
00]} 20. Rd2 {[%emt 0:09:05]} Ra5 {[%emt 0:05:07]} 21. Nxa4 {[%emt 0:05:32]}
Bxb5 {[%emt 0:08:10]} 22. cxb5 {[%emt 0:02:22]} Nxa4 {[%emt 0:02:30]} 23. Bxa4
{[%emt 0:00:11]} Qa8 {[%emt 0:03:04]} 24. Bc2 {[%emt 0:08:04]} Rxb5 {[%emt 0:
00:00]} 25. Ba4 {[%emt 0:01:35]} Ra5 {[%emt 0:00:22]} 26. Bc6 {[%emt 0:00:13]}
Qf8 {[%emt 0:01:19]} 27. a4 {[%emt 0:00:25]} Nd7 {[%emt 0:07:40]} 28. b4 {
[%emt 0:00:27]} Ra6 {[%emt 0:01:14]} 29. Qe2 {[%emt 0:04:11]} Nb8 {[%emt 0:00:
00]} 30. Bb5 {[%emt 0:00:59]} Ra8 {[%emt 0:00:10]} 31. Ra2 {[%emt 0:00:42]} Bc3
{[%emt 0:03:28]} 32. Qc4 {[%emt 0:02:15]} Qg7 {[%emt 0:00:22]} 33. Rc1 {
[%emt 0:01:34]} Bf6 {[%emt 0:00:43]} 34. a5 {[%emt 0:01:12]} Qg3 {[%emt 0:00:
00]} 35. Qe2 {[%emt 0:00:22]} Rg7 {[%emt 0:00:14]} 36. Kh1 {[%emt 0:00:05]} h6
{[%emt 0:01:39]} 37. Qf2 {[%emt 0:06:31]} Bh4 {[%emt 0:01:19]} 38. Qxg3 {
[%emt 0:02:32]} Bxg3 {[%emt 0:01:15]} 39. Ra4 {[%emt 0:01:06]} Kh7 {[%emt 0:00:
00]} 40. axb6 {[%emt 0:00:36]} Rxa4 {[%emt 0:00:08]} 41. bxc7 {[%emt 0:30:33]}
1-0

[Event "44th Chess Olympiad Open 2022"]
[Site "Chennai"]
[Date "2022.07.30"]
[Round "2.26"]
[White "Brunello, Sabino"]
[Black "Escalona Landi, Samid Eduardo"]
[Result "1/2-1/2"]
[WhiteElo "2520"]
[BlackElo "2191"]
[Annotator "TA"]
[PlyCount "118"]
[EventDate "2022.??.??"]
[TimeControl "60"]

{[%evp 20,118,52,53,50,33,38,44,66,51,59,57,79,83,85,83,114,106,101,104,171,
170,175,175,172,175,172,168,183,173,198,182,267,211,203,211,212,204,231,236,
226,234,229,231,226,120,156,148,138,125,207,8,11,0,0,21,9,0,0,0,0,0,0,0,0,0,0,
0,0,0,0,0,0,0,0,0,0,0,0,0,0,0,0,0,0,0,0,0,0,0,0,0,0,0,0,0,0,0,0,0,0]} 1. d4 {
[%emt 0:00:05]} Nf6 {[%emt 0:00:16]} 2. c4 {[%emt 0:00:17]} g6 {[%emt 0:00:05]}
3. Nc3 {[%emt 0:00:11]} Bg7 {[%emt 0:00:05]} 4. e4 {[%emt 0:00:04]} d6 {
[%emt 0:00:03]} 5. Nf3 {[%emt 0:00:51]} O-O {[%emt 0:00:06]} 6. Be2 {[%emt 0:
00:00]} Nbd7 {[%emt 0:01:27]} 7. O-O {[%emt 0:00:49]} e5 {[%emt 0:00:05]} 8.
Be3 {[%emt 0:02:36]} Ng4 {[%emt 0:00:17]} 9. Bg5 {[%emt 0:00:18]} f6 {[%emt 0:
00:00]} 10. Bc1 {[%emt 0:00:13]} Nh6 {[%emt 0:03:59]} 11. dxe5 {[%emt 0:05:02]}
dxe5 {[%emt 0:00:00] E94: King's Indian: Classical: 6 Be2 e5 7 0-0: Various
Black 7th moves.} 12. Be3 {[%emt 0:01:07]} Ng4 {[%emt 0:00:00]} 13. Bd2 {
[%emt 0:01:42]} f5 {[%emt 0:00:00] White is slightly better.} 14. exf5 {
[%emt 0:06:08]} gxf5 {[%emt 0:00:00]} 15. Ng5 {[%emt 0:12:21]} Nc5 {[%emt 0:00:
00][%cal Yd7c5,Yc5e6,Ye6f4] Against Ne6} 16. Bxg4 {[%emt 0:01:55]} fxg4 {
[%emt 0:00:20] [#]} 17. Be3 $1 {[%emt 0:00:13] [#] Strongly threatening Qxd8.}
Ne6 $146 {[%emt 0:46:59]} ({Predecessor:} 17... Qxd1 18. Rfxd1 Na6 19. Nd5 Re8
20. Ne4 Kf7 21. Nc5 Nxc5 22. Bxc5 Bf8 23. Bxf8 Rxf8 24. Nxc7 Rb8 25. b3 Bf5 {
1-0 (54) Pavlov,O (2282)-Eremeenko,V (2024) Russia 2007}) 18. Qxg4 {[%emt 0:10:
14] White is more active.} Nf4 {[%emt 0:00:05]} 19. Qg3 $40 {[%emt 0:00:09]
White goes for the king.} (19. Qh4 h6 20. Nf3 Qxh4 21. Nxh4 Be6 $11) 19... Rf5
{[%emt 0:12:33]} (19... h6 $16) 20. Nge4 $18 {[%emt 0:00:00]} Be6 {[%emt 0:06:
09]} 21. b3 {[%emt 0:06:39]} Qe7 {[%emt 0:01:40]} 22. Rad1 {[%emt 0:03:36]} (
22. Bc5 Qf7 23. f3 Kh8) 22... Kh8 {[%emt 0:00:19]} 23. f3 {[%emt 0:15:11]} Bh6
{[%emt 0:01:10]} 24. Qf2 {[%emt 0:01:20]} Qg7 {[%emt 0:00:00]} 25. Ng3 {
[%emt 0:01:38] And now Bxf4 would win. Pair of Knights!} Rg5 {[%emt 0:04:43]} (
25... Rff8 $142 26. Bxf4 (26. Bxa7 b6 $15) 26... exf4) 26. Nce4 {[%emt 0:02:35]
} Rg6 {[%emt 0:00:37]} 27. Rfe1 {[%emt 0:03:11]} Rg8 {[%emt 0:00:49]} 28. Kh1 {
[%emt 0:00:17]} (28. Bxa7 {[#]} Bh3 $1 29. Be3 Nxg2 30. Bxh6 Qxh6 $17) 28...
Qe7 {[%emt 0:00:06]} 29. Nc5 {[%emt 0:11:18]} ({But not} 29. Bxa7 $6 b6) 29...
Bc8 {[%emt 0:11:52]} 30. Nd3 {[%emt 0:06:18]} Nxd3 {[%emt 0:01:09]} 31. Rxd3 {
[%emt 0:00:01]} Qh4 {[%emt 0:00:01][%cal Rg6g3]} 32. Ne4 {[%emt 0:00:11]} (32.
Kg1 $18) 32... Qxf2 $16 {[%emt 0:00:35] Remove Defender} 33. Bxf2 {[%emt 0:00:
12]} Rxg2 {[%emt 0:00:32]} 34. Bg3 {[%emt 0:03:49]} Rxa2 {[%emt 0:00:37]} 35.
Nc3 $2 {[%emt 0:03:14]} (35. Bxe5+ $18 Bg7 36. Bxg7+ (36. Bxc7 Bf5 $14) 36...
Rxg7 37. Nf6) 35... Bf5 $11 {[%emt 0:00:29] The position is equal.} 36. Bxe5+ {
[%emt 0:01:07]} Bg7 {[%emt 0:00:00]} 37. Bxg7+ {[%emt 0:01:00]} Kxg7 {[%emt 0:
00:10]} 38. Rd5 {[%emt 0:00:00]} Rc2 {[%emt 0:00:19]} 39. Rxf5 {[%emt 0:00:30]}
Rxc3 {[%emt 0:00:05] Endgame KRR-KRR} 40. Re7+ {[%emt 0:00:17]} Kh8 {[%emt 0:
00:31] ( -> ... Rc1+)} 41. h4 {[%emt 0:30:11]} Rc1+ {[%emt 0:30:03]} 42. Kh2 {
[%emt 0:00:03] Threatens to win with Rff7.} Rcg1 {[%emt 0:00:03]} 43. Rg5 {
[%emt 0:01:21]} R8xg5 {[%emt 0:02:19]} 44. hxg5 {[%emt 0:00:08] KR-KR} Rb1 {
[%emt 0:00:03]} 45. Rxc7 {[%emt 0:00:41]} Rxb3 {[%emt 0:00:07]} 46. Kg3 {
[%emt 0:00:04]} a5 {[%emt 0:00:39][%cal Ya7a5,Ya5a4,Ya4a3]} 47. c5 {[%emt 0:00:
00]} a4 {[%emt 0:00:00]} 48. Kg4 {[%emt 0:00:00]} a3 {[%emt 0:00:00] ...Rb4+
is the strong threat.} 49. Rc8+ {[%emt 0:00:00]} Kg7 {[%emt 0:00:00] White
must now prevent ...Rb4+.} 50. Ra8 {[%emt 0:00:00]} h6 {[%emt 0:00:00]} 51. f4
{[%emt 0:00:00]} hxg5 {[%emt 0:00:00]} 52. Kxg5 {[%emt 0:00:00]} Rb5 {[%emt 0:
00:00]} 53. Rxa3 {[%emt 0:00:00]} Rxc5+ {[%emt 0:00:00]} 54. f5 {[%emt 0:00:00]
} Rc1 {[%emt 0:00:00]} 55. Rb3 {[%emt 0:00:00]} Rg1+ {[%emt 0:00:00]} 56. Kf4 {
[%emt 0:00:00]} Rf1+ {[%emt 0:00:00]} 57. Ke5 {[%emt 0:00:00]} Re1+ {[%emt 0:
00:00]} 58. Kd6 {[%emt 0:00:00]} Kf6 {[%emt 0:00:00]} 59. Rxb7 {[%emt 0:00:00]}
Kxf5 {[%emt 0:00:00] White really could win this. Weighted Error Value:
White=0.11 (very precise) /Black=0.08 (flawless)} 1/2-1/2

[Event "44th Chess Olympiad Open 2022"]
[Site "Chennai"]
[Date "2022.07.30"]
[Round "2.26"]
[White "Rohl Montes, Juan Armando"]
[Black "Vocaturo, Daniele"]
[Result "0-1"]
[WhiteElo "2382"]
[BlackElo "2616"]
[Annotator "RC"]
[PlyCount "109"]
[EventDate "2022.??.??"]
[TimeControl "60"]

1. e4 {[%emt 0:00:45]} c6 {[%emt 0:00:42]} 2. d4 {[%emt 0:01:25]} d5 {[%emt 0:
00:00]} 3. Nd2 {[%emt 0:01:39]} dxe4 {[%emt 0:00:20]} 4. Nxe4 {[%emt 0:00:11]}
Nf6 {[%emt 0:00:17]} 5. Nxf6+ {[%emt 0:01:38]} exf6 {[%emt 0:00:07]} 6. Be3 {
[%emt 0:02:57]} Nd7 {[%emt 0:02:30]} 7. Bd3 {[%emt 0:09:07]} f5 {[%emt 0:01:22]
} 8. Ne2 {[%emt 0:04:26]} Nf6 {[%emt 0:01:59]} 9. h3 {[%emt 0:07:27]} Bd6 {
[%emt 0:06:27]} 10. O-O {[%emt 0:03:54]} O-O {[%emt 0:00:50]} 11. c4 {[%emt 0:
00:00]} Re8 {[%emt 0:01:17]} 12. Qc2 {[%emt 0:04:34]} Ne4 {[%emt 0:04:43]} 13.
Rae1 {[%emt 0:08:49]} g6 {[%emt 0:06:28]} 14. Qc1 {[%emt 0:05:39]} Be6 {
[%emt 0:02:05]} 15. b3 {[%emt 0:12:43]} Rc8 {[%emt 0:09:48]} 16. Bf4 {[%emt 0:
00:00]} Bxf4 {[%emt 0:05:13]} 17. Qxf4 {[%emt 0:00:10]} Nf6 {[%emt 0:00:59]}
18. Rd1 {[%emt 0:04:59]} Rc7 {[%emt 0:01:56]} 19. Rd2 {[%emt 0:02:44]} Nh5 {
[%emt 0:07:54]} 20. Qf3 {[%emt 0:00:49]} Qg5 {[%emt 0:00:47]} 21. Rc2 {[%emt 0:
00:00]} Rce7 {[%emt 0:05:20]} 22. Kh2 {[%emt 0:03:49]} Bd7 {[%emt 0:01:57]} 23.
Rd1 {[%emt 0:00:28]} Qf6 {[%emt 0:03:45]} 24. Rcd2 {[%emt 0:02:49]} a5 {
[%emt 0:04:19]} 25. Bc2 {[%emt 0:01:36]} Qd6+ {[%emt 0:01:46]} 26. Kg1 {
[%emt 0:00:41]} Nf6 {[%emt 0:00:52]} 27. Qf4 {[%emt 0:00:43]} Qxf4 {[%emt 0:00:
00]} 28. Nxf4 {[%emt 0:00:04]} g5 {[%emt 0:00:19]} 29. Nd3 {[%emt 0:00:34]} Ne4
{[%emt 0:00:30]} 30. Re2 {[%emt 0:00:07]} Nc3 {[%emt 0:00:13]} 31. Rxe7 {
[%emt 0:00:09]} Rxe7 {[%emt 0:00:09]} 32. Rd2 {[%emt 0:00:25]} Re2 {[%emt 0:00:
00]} 33. Rxe2 {[%emt 0:00:04]} Nxe2+ {[%emt 0:00:05]} 34. Kf1 {[%emt 0:00:02]}
Nxd4 {[%emt 0:00:05]} 35. Nc5 {[%emt 0:04:45]} Bc8 {[%emt 0:02:23]} 36. Bd3 {
[%emt 0:00:47]} f4 {[%emt 0:01:43]} 37. Ke1 {[%emt 0:01:02]} Kg7 {[%emt 0:00:
00]} 38. Ne4 {[%emt 0:01:03]} Bf5 {[%emt 0:01:47]} 39. Nc5 {[%emt 0:00:04]} b6
{[%emt 0:01:44]} 40. Bxf5 {[%emt 0:00:07]} bxc5 {[%emt 0:00:04]} 41. Bd3 {
[%emt 0:01:46]} h6 {[%emt 0:32:07]} 42. Kd2 {[%emt 0:30:42]} Kf6 {[%emt 0:00:
00]} 43. Kc3 {[%emt 0:00:31]} Ke5 {[%emt 0:00:46]} 44. a3 {[%emt 0:01:33]} f6 {
[%emt 0:04:40]} 45. Bg6 {[%emt 0:00:00]} f5 {[%emt 0:00:00]} 46. Bh5 {[%emt 0:
00:00]} Ke4 {[%emt 0:05:08]} 47. b4 {[%emt 0:02:33]} axb4+ {[%emt 0:00:00]} 48.
axb4 {[%emt 0:00:00]} cxb4+ {[%emt 0:00:00]} 49. Kxb4 {[%emt 0:01:20]} f3 {
[%emt 0:00:00]} 50. gxf3+ {[%emt 0:00:00]} Nxf3 {[%emt 0:00:00]} 51. Be8 {
[%emt 0:00:00]} Ne5 {[%emt 0:00:00]} 52. Kc5 {[%emt 0:05:51]} Kf3 {[%emt 0:00:
00]} 53. Bxc6+ {[%emt 0:00:00]} Kxf2 {[%emt 0:00:00]} 54. Bd5 {[%emt 0:00:00]}
g4 {[%emt 0:00:00]} 55. Kd4 {[%emt 0:00:00]} 0-1